lending/lending_fUSD_20260317
["ID","MTS","AMOUNT","RATE_DAILY","PERIOD"]
[408490458,1773747839708,-638.73044,0.00045616,120]
[408490459,1773747839734,-1395.157369,0.00045616,120]
[408490460,1773747839758,-638.73044,0.00045616,120]
[408490461,1773747839784,-1395.157369,0.00045616,120]
[408490462,1773747839810,-638.73044,0.00045616,120]
[408490463,1773747839835,-1395.157369,0.00045616,120]
[408490464,1773747839860,-638.73044,0.00045616,120]
[408490465,1773747839885,-1395.157369,0.00045616,120]
[408490466,1773747839911,-153.147593,0.00045616,120]
[408490467,1773747839935,-638.73044,0.00045616,120]
[408490468,1773747839959,-1307.808629,0.00045616,120]
[408490469,1773747839984,-1395.157369,0.00045616,120]
[408490470,1773747840008,-638.73044,0.00045616,120]
[408490471,1773747840035,-1307.808629,0.00045616,120]
[408490472,1773747840061,-638.73044,0.00045616,120]
[408490473,1773747840089,-1395.157369,0.00045616,120]
[408490474,1773747840116,-1307.808629,0.00045616,120]
[408490475,1773747840142,-638.73044,0.00045616,120]
[408490476,1773747840168,-1395.157369,0.00045616,120]
[408490477,1773747840194,-1307.808629,0.00045616,120]
[408490478,1773747840221,-638.73044,0.00045616,120]
[408490479,1773747840248,-1395.157365,0.00045616,120]
[408490480,1773747840274,-1307.808629,0.00045616,120]
[408490481,1773747840299,-638.73044,0.00045616,120]
[408490482,1773747840326,-1307.808629,0.00045616,120]
[408490483,1773747840351,-638.73044,0.00045616,120]
[408490484,1773747840376,-1307.808629,0.00045616,120]
[408490485,1773747840401,-638.73044,0.00045616,120]
[408490486,1773747840426,-1307.808629,0.00045616,120]
[408490487,1773747840451,-638.73044,0.00045616,120]
[408490488,1773747840476,-1307.808629,0.00045616,120]
[408490489,1773747840501,-638.73044,0.00045616,120]
[408490490,1773747840526,-1307.808629,0.00045616,120]
[408490491,1773747840550,-638.73044,0.00045616,120]
[408490492,1773747840575,-1307.808629,0.00045616,120]
[408490493,1773747840599,-638.73044,0.00045616,120]
[408490494,1773747840624,-1307.808629,0.00045616,120]
[408490495,1773747840756,-638.73044,0.00045616,120]
[408490496,1773747840782,-1307.808629,0.00045616,120]
[408490497,1773747840806,-638.73044,0.00045616,120]
[408490498,1773747840831,-1307.808629,0.00045616,120]
[408490499,1773747840856,-638.730436,0.00045616,120]
[408490500,1773747840880,-1307.808629,0.00045616,120]
[408490501,1773747840905,-1307.808629,0.00045616,120]
[408490502,1773747840930,-1307.808629,0.00045616,120]
[408490503,1773747840956,-1307.808629,0.00045616,120]
[408490504,1773747840979,-1307.808629,0.00045616,120]
[408490505,1773747841005,-1307.80863,0.00045616,120]
[408490506,1773747841033,-152.0,0.00045616,120]
[408490507,1773747841058,-170.199018,0.00045616,120]
[408490508,1773747841090,-151.0,0.00045616,120]
[408490509,1773747841114,-151.0,0.00045616,120]
[408490510,1773747841139,-188.557626,0.00045616,120]
[408490511,1773747841163,-151.0,0.00045616,120]
[408490512,1773747841187,-151.68257135,0.000457,120]
[408490513,1773747841212,-151.0,0.000457,120]
[408490514,1773747841237,-1000.0,0.00045753,120]
[408490515,1773747841262,-1000.0,0.000458,30]
[408490516,1773747841289,-1000.0,0.000458,30]
[408490517,1773747841312,-226.28,0.0004589,120]
[408490518,1773747841336,-333.0,0.0004589,120]
[408490519,1773747841361,-600.0,0.00045895,120]
[408490520,1773747841386,-452.0,0.000459,120]
[408490521,1773747841411,-408.94440127,0.0004591,120]
[408490522,1773747841436,-293.0,0.00045927,30]
[408490523,1773747841459,-408.94440127,0.00045931,120]
[408490524,1773747841483,-247.72609122,0.00045997,120]
[408490525,1773747841509,-164.30512468,0.00046,120]
[408490526,1773747841533,-161.23690569,0.00046,120]
[408490527,1773747841557,-3623.0,0.00046,60]
[408490528,1773747841582,-500.0,0.00046,120]
[408490529,1773747841606,-8697.40124983,0.00046,120]
[408490530,1773747841632,-10000.0,0.00046,120]
[408490531,1773747841657,-2108.01520554,0.00046,30]
[408490532,1773747841682,-151.0,0.00046,120]
[408490533,1773747841706,-904.61301516,0.00046,120]
[408490534,1773747841731,-328.04775141,0.00046,120]
[408490535,1773747841755,-186.31,0.00046,30]
[408490536,1773747841780,-879.83,0.00046,30]
[408490537,1773747841803,-507.09523958,0.00046,120]
[408490538,1773747841828,-722.0,0.00046,30]
[408490539,1773747841853,-1446.0,0.00046,30]
[408490540,1773747841881,-1000.0,0.00046027,120]
[408490541,1773747841907,-369.68255333,0.00046038,120]
[408490542,1773747841934,-425.04836867,0.00046056,120]
[408490543,1773747841961,-333.0,0.00046164,120]
[408490544,1773747841988,-1300.0,0.00046169,120]
[408490545,1773747842013,-1200.0,0.00046169,120]
[408490546,1773747842039,-214.78523143,0.0004618,120]
[408490547,1773747842193,-1000.0,0.00046301,120]
[408490548,1773747842223,-12697.0,0.0004635,60]
[408490549,1773747842252,-790.58435222,0.00046388,30]
[408490550,1773747842283,-333.0,0.00046438,120]
[408490551,1773747842309,-600.0,0.00046443,120]
[408490552,1773747842334,-150.0,0.00046488,30]
[408490553,1773747842361,-10000.0,0.000465,120]
[408490554,1773747842385,-170.84233644,0.000465,120]
[408490555,1773747842411,-379.6457403,0.0004655,120]
[408490556,1773747842438,-150.0,0.00046575,120]
[408490557,1773747842468,-150.0,0.00046575,120]
[408490558,1773747842494,-150.0,0.00046575,120]
[408490559,1773747842519,-150.0,0.00046575,120]
[408490560,1773747842545,-292.96233096,0.00046575,120]
[408490561,1773747842573,-300.0,0.00046575,30]
[408490562,1773747842598,-300.0,0.00046575,30]
[408490563,1773747842626,-300.0,0.00046575,30]
[408490564,1773747842652,-300.0,0.00046575,30]
[408490565,1773747842679,-300.0,0.00046575,30]
[408490566,1773747842704,-300.0,0.00046575,30]
[408490567,1773747842731,-300.0,0.00046575,30]
[408490568,1773747842759,-300.0,0.00046575,30]
[408490569,1773747842785,-300.0,0.00046575,30]
[408490570,1773747842813,-300.0,0.00046575,30]
[408490571,1773747842840,-300.0,0.00046575,30]
[408490572,1773747842870,-300.0,0.00046575,30]
[408490573,1773747842896,-300.0,0.00046575,30]
[408490574,1773747842922,-300.0,0.00046575,30]
[408490575,1773747842948,-300.0,0.00046575,30]
[408490576,1773747842974,-300.0,0.00046575,30]
[408490577,1773747843000,-300.0,0.00046575,30]
[408490578,1773747843026,-300.0,0.00046575,30]
[408490579,1773747843052,-300.0,0.00046575,30]
[408490580,1773747843078,-300.0,0.00046575,30]
[408490581,1773747843108,-300.0,0.00046575,30]
[408490582,1773747843134,-300.0,0.00046575,30]
[408490583,1773747843161,-300.0,0.00046575,30]
[408490584,1773747843186,-300.0,0.00046575,30]
[408490585,1773747843212,-300.0,0.00046575,30]
[408490586,1773747843237,-300.0,0.00046575,30]
[408490587,1773747843267,-300.0,0.00046575,30]
[408490588,1773747843291,-400.0,0.00046575,120]
[408490589,1773747843319,-402.08,0.00046575,120]
[408490590,1773747843349,-201.4308655,0.00046575,120]
[408490591,1773747843374,-955.59,0.00046575,120]
[408490592,1773747843400,-1000.0,0.00046575,120]
[408490593,1773747843427,-50012.0,0.00046576,60]
[408490594,1773747843455,-159.36082061,0.0004658,120]
[408490595,1773747843482,-159.36,0.0004658,120]
[408490596,1773747843508,-152.46,0.0004658,120]
[408490597,1773747843638,-3580.0,0.000466,120]
[408490598,1773747843666,-4786.983,0.00046658,30]
[408490599,1773747843692,-1300.0,0.00046717,120]
[408490600,1773747843716,-1200.0,0.00046717,120]
[408490601,1773747843756,-1496.88,0.0004676,30]
[408490602,1773747843786,-528.76,0.0004676,30]
[408490603,1773747843817,-15282.76292091,0.000468,120]
[408490604,1773747843844,-50000.0,0.000468,60]
[408490605,1773747843872,-50000.0,0.000468,90]
[408490606,1773747843900,-1000.0,0.00046849,120]
[408490607,1773747843930,-200.23,0.00046864,30]
[408490608,1773747843961,-150.0,0.00046888,120]
[408490609,1773747843990,-706.70261452,0.000469,120]
[408490610,1773747844018,-490.89317616,0.00046909,120]
[408490611,1773747844048,-293.0,0.00046927,30]
[408490612,1773747844076,-600.0,0.00046991,120]
[408490613,1773747844106,-219.45,0.00046997,120]
[408490614,1773747844147,-806.0,0.00047,30]
[408490615,1773747844187,-416.0,0.00047,120]
[408490616,1773747844218,-500.0,0.00047,120]
[408490617,1773747844250,-4257.23,0.00047,120]
[408490618,1773747844284,-10000.0,0.00047,120]
[408490619,1773747844312,-154.54001378,0.00047,120]
[408490620,1773747844341,-99135.0703182,0.00047,30]
[408490621,1773747844368,-354.262285,0.00047,120]
[408490622,1773747844395,-722.0,0.00047,30]
[408490623,1773747844426,-1446.0,0.00047,30]
[408490624,1773747844453,-1446.0,0.00047,30]
[408490625,1773747844481,-724.0,0.00047,30]
[408490626,1773747844508,-653.63,0.00047,120]
[408490627,1773747844536,-151.0,0.000471,120]
[408490628,1773747844563,-1000.0,0.00047123,120]
[408490629,1773747844591,-5000.0,0.000472,60]
[408490630,1773747844618,-105559.91942035,0.00047206,60]
[408490631,1773747844649,-1300.0,0.00047265,120]
[408490632,1773747844677,-1200.0,0.00047265,120]
[408490633,1773747844705,-219.45,0.00047306,120]
[408490634,1773747844732,-375.06842866,0.00047334,120]
[408490635,1773747844761,-1000.0,0.00047397,120]
[408490636,1773747844788,-243.34,0.0004742,30]
[408490637,1773747844817,-399964.69316329,0.0004745,120]
[408490638,1773747844847,-335.31925611,0.000475,120]
[408490639,1773747844877,-600.0,0.00047539,120]
[408490640,1773747844905,-324.26,0.00047545,120]
[408490641,1773747844934,-437.57983344,0.00047568,120]
[408490642,1773747844965,-343.2978,0.000476,120]
[408490643,1773747844992,-199.4629299,0.000476,120]
[408490644,1773747845028,-156.42059519,0.000476,90]
[408490645,1773747845202,-394.5369,0.000476,90]
[408490646,1773747845232,-217.60754725,0.000476,120]
[408490647,1773747845262,-157.6148476,0.000476,90]
[408490648,1773747845296,-186.47033507,0.000476,90]
[408490649,1773747845326,-13007.76662656,0.000476,50]
[408490650,1773747845356,-150.0,0.00047602,120]
[408490651,1773747845384,-219.45,0.00047615,120]
[408490652,1773747845413,-500.0,0.00047654,31]
[408490653,1773747845442,-1000.0,0.00047671,120]
[408490654,1773747845470,-164.47563052,0.00047678,60]
[408490655,1773747845498,-693230.77,0.0004769,120]
[408490656,1773747845528,-359.39350873,0.000477,120]
[408490657,1773747845558,-680.0,0.000477,120]
[408490658,1773747845588,-12697.0,0.000477,60]
[408490659,1773747845615,-748.44,0.00047711,30]
[408490660,1773747845642,-264.38,0.00047711,30]
[408490661,1773747845671,-293.0,0.00047774,120]
[408490662,1773747845706,-50000.0,0.00047777,44]
[408490663,1773747845734,-770.22,0.00047777,120]
[408490664,1773747845763,-770.31,0.00047777,120]
[408490665,1773747845795,-770.31,0.00047777,120]
[408490666,1773747845823,-770.31,0.00047777,120]
[408490667,1773747845852,-770.31,0.00047777,120]
[408490668,1773747845880,-770.31,0.00047777,120]
[408490669,1773747845909,-770.31,0.00047777,120]
[408490670,1773747845938,-770.31,0.00047777,120]
[408490671,1773747845967,-770.31,0.00047777,120]
[408490672,1773747845996,-770.31,0.00047777,120]
[408490673,1773747846040,-770.31,0.00047777,120]
[408490674,1773747846071,-770.31,0.00047777,120]
[408490675,1773747846100,-770.31,0.00047777,120]
[408490676,1773747846129,-770.31,0.00047777,120]
[408490677,1773747846157,-770.31,0.00047777,120]
[408490678,1773747846185,-770.31,0.00047777,120]
[408490679,1773747846213,-770.31,0.00047777,120]
[408490680,1773747846240,-770.31,0.00047777,120]
[408490681,1773747846268,-770.31,0.00047777,120]
[408490682,1773747846296,-770.31,0.00047777,120]
[408490683,1773747846339,-50011.0,0.0004779,30]
[408490684,1773747846368,-155.31,0.000478,120]
[408490685,1773747846395,-161.6,0.000478,118]
[408490686,1773747846422,-9416.56,0.00047811,120]
[408490687,1773747846453,-9416.56,0.00047811,120]
[408490688,1773747846481,-9416.56,0.00047811,120]
[408490689,1773747846509,-9416.56,0.00047811,120]
[408490690,1773747846701,-9416.56,0.00047811,120]
[408490691,1773747846733,-9416.56,0.00047811,120]
[408490692,1773747846762,-9416.56,0.00047811,120]
[408490693,1773747846791,-9416.56,0.00047811,120]
[408490694,1773747846818,-151.0,0.00047812,120]
[408490695,1773747846851,-151.0,0.00047812,120]
[408490696,1773747846881,-1030.0,0.00047812,30]
[408490697,1773747846912,-500.0,0.00047812,30]
[408490698,1773747846942,-250.0,0.00047812,30]
[408490699,1773747846975,-151.0,0.00047812,30]
[408490700,1773747847007,-3000.0,0.00047812,30]
[408490701,1773747847046,-520.0,0.00047812,30]
[408490702,1773747847077,-500.0,0.00047812,30]
[408490703,1773747847110,-200.0,0.00047812,30]
[408490704,1773747847141,-6888.0,0.00047812,30]
[408490705,1773747847172,-1068.11,0.00047812,60]
[408490706,1773747847201,-156.587,0.00047812,60]
[408490707,1773747847229,-250.0,0.00047812,60]
[408490708,1773747847257,-500.0,0.00047812,60]
[408490709,1773747847289,-2027.92480951,0.00047812,60]
[408490710,1773747847319,-539.24,0.00047812,60]
[408490711,1773747847351,-500.0,0.00047812,60]
[408490712,1773747847383,-200.0,0.00047812,30]
[408490713,1773747847432,-7142.856,0.00047812,60]
[408490714,1773747847489,-1107.63007,0.00047812,68]
[408490715,1773747847547,-245.0486657,0.00047812,68]
[408490716,1773747847601,-250.0,0.00047812,68]
[408490717,1773747847655,-559.19188,0.00047812,68]
[408490718,1773747847700,-500.0,0.00047812,68]
[408490719,1773747847747,-500.0,0.00047812,68]
[408490720,1773747847790,-268.40098731,0.00047812,30]
[408490721,1773747847834,-1263.21767793,0.00047812,68]
[408490722,1773747847876,-1148.61238259,0.00047812,90]
[408490723,1773747847917,-287.60805542,0.00047812,90]
[408490724,1773747847958,-250.0,0.00047812,90]
[408490725,1773747848005,-500.0,0.00047812,90]
[408490726,1773747848053,-500.0,0.00047812,90]
[408490727,1773747848098,-1191.11104075,0.00047812,120]
[408490728,1773747848142,-250.0,0.00047812,120]
[408490729,1773747848185,-500.0,0.00047812,120]
[408490730,1773747848233,-500.0,0.00047812,120]
[408490731,1773747848280,-776.88929492,0.00047812,30]
[408490732,1773747848327,-500.0,0.00047812,30]
[408490733,1773747848372,-500.0,0.00047812,60]
[408490734,1773747848415,-220.0,0.00047812,30]
[408490735,1773747848462,-500.0,0.00047812,68]
[408490736,1773747848652,-500.0,0.00047812,30]
[408490737,1773747848681,-233.20432544,0.00047812,30]
[408490738,1773747848711,-500.0,0.00047812,30]
[408490739,1773747848741,-500.0,0.00047812,90]
[408490740,1773747848770,-500.0,0.00047812,60]
[408490741,1773747848803,-500.0,0.00047812,60]
[408490742,1773747848835,-500.0,0.00047812,120]
[408490743,1773747848868,-500.0,0.00047812,68]
[408490744,1773747848898,-500.0,0.00047812,68]
[408490745,1773747848926,-1500.0,0.00047812,30]
[408490746,1773747848954,-500.0,0.00047812,90]
[408490747,1773747848982,-500.0,0.00047812,90]
[408490748,1773747849010,-579.43321178,0.00047812,60]
[408490749,1773747849036,-4234.5018307,0.00047812,30]
[408490750,1773747849063,-500.0,0.00047812,120]
[408490751,1773747849090,-500.0,0.00047812,120]
[408490752,1773747849116,-500.0,0.00047812,30]
[408490753,1773747849143,-250.0,0.00047812,30]
[408490754,1773747849169,-151.49903748,0.00047812,30]
[408490755,1773747849196,-500.0,0.00047812,60]
[408490756,1773747849223,-250.0,0.00047812,60]
[408490757,1773747849252,-151.0,0.00047812,30]
[408490758,1773747849282,-500.0,0.00047812,68]
[408490759,1773747849312,-250.0,0.00047812,68]
[408490760,1773747849342,-500.0,0.00047812,90]
[408490761,1773747849372,-151.0,0.00047812,60]
[408490762,1773747849400,-250.0,0.00047812,90]
[408490763,1773747849430,-286.91019651,0.00047812,30]
[408490764,1773747849461,-500.0,0.00047812,120]
[408490765,1773747849490,-151.0,0.00047812,68]
[408490766,1773747849520,-250.0,0.00047812,120]
[408490767,1773747849549,-151.0,0.00047812,90]
[408490768,1773747849579,-750.0,0.00047812,30]
[408490769,1773747849610,-151.0,0.00047812,120]
[408490770,1773747849640,-750.0,0.00047812,60]
[408490771,1773747849671,-750.0,0.00047812,68]
[408490772,1773747849701,-750.0,0.00047812,90]
[408490773,1773747849731,-250.0,0.00047812,30]
[408490774,1773747849761,-750.0,0.00047812,120]
[408490775,1773747849790,-500.0,0.00047812,30]
[408490776,1773747849819,-250.0,0.00047812,60]
[408490777,1773747849846,-518.5,0.00047812,60]
[408490778,1773747849877,-250.0,0.00047812,68]
[408490779,1773747849904,-151.0,0.00047812,30]
[408490780,1773747849931,-537.6845,0.00047812,68]
[408490781,1773747849961,-250.0,0.00047812,90]
[408490782,1773747849995,-156.587,0.00047812,60]
[408490783,1773747850026,-250.0,0.00047812,120]
[408490784,1773747850057,-572.33470636,0.00047812,90]
[408490785,1773747850087,-162.380719,0.00047812,68]
[408490786,1773747850116,-168.3888056,0.00047812,90]
[408490787,1773747850146,-151.0,0.00047812,30]
[408490788,1773747850176,-151.0,0.00047812,60]
[408490789,1773747850204,-5203.90258797,0.00047812,30]
[408490790,1773747850232,-151.0,0.00047812,68]
[408490791,1773747850260,-250.0,0.00047812,30]
[408490792,1773747850293,-151.0,0.00047812,90]
[408490793,1773747850322,-250.0,0.00047812,60]
[408490794,1773747850468,-151.0,0.00047812,120]
[408490795,1773747850499,-250.0,0.00047812,68]
[408490796,1773747850528,-250.0,0.00047812,90]
[408490797,1773747850558,-500.0,0.00047812,30]
[408490798,1773747850588,-200.0,0.00047812,30]
[408490799,1773747850617,-250.0,0.00047812,120]
[408490800,1773747850646,-500.0,0.00047812,60]
[408490801,1773747850676,-203.72330709,0.00047812,60]
[408490802,1773747850706,-500.0,0.00047812,30]
[408490803,1773747850736,-2977.05738015,0.00047812,30]
[408490804,1773747850767,-500.0,0.00047812,60]
[408490805,1773747850795,-500.0,0.00047812,68]
[408490806,1773747850822,-155.78714781,0.00047812,30]
[408490807,1773747850853,-500.0,0.00047812,90]
[408490808,1773747850883,-500.0,0.00047812,120]
[408490809,1773747850913,-170.0,0.00047812,30]
[408490810,1773747850945,-176.29,0.00047812,30]
[408490811,1773747850975,-182.81273,0.00047812,30]
[408490812,1773747851006,-189.57680101,0.00047812,30]
[408490813,1773747851037,-196.59114265,0.00047812,30]
[408490814,1773747851068,-203.86501493,0.00047812,30]
[408490815,1773747851098,-211.40802048,0.00047812,30]
[408490816,1773747851127,-251.0,0.00047812,30]
[408490817,1773747851156,-260.287,0.00047812,60]
[408490818,1773747851189,-152.20535958,0.00047812,68]
[408490819,1773747851219,-1300.0,0.00047813,120]
[408490820,1773747851248,-1200.0,0.00047813,120]
[408490821,1773747851278,-190.46293161,0.00047813,120]
[408490822,1773747851309,-1277.42,0.00047813,30]
[408490823,1773747851335,-1000.26,0.00047819,120]
[408490824,1773747851364,-802.46692707,0.0004782,81]
[408490825,1773747851392,-584376.92447374,0.00047833,120]
[408490826,1773747851420,-1596.33414427,0.0004788,100]
[408490827,1773747851447,-371.4254557,0.0004789,120]
[408490828,1773747851476,-19715.44442822,0.000479,120]
[408490829,1773747851505,-19715.44442817,0.000479,120]
[408490830,1773747851536,-19715.44442817,0.000479,120]
[408490831,1773747851565,-19715.44442817,0.000479,120]
[408490832,1773747851594,-19715.44442817,0.000479,120]
[408490833,1773747851623,-19715.44442817,0.000479,120]
[408490834,1773747851652,-19715.44442817,0.000479,120]
[408490835,1773747851679,-19715.44442817,0.000479,120]
[408490836,1773747851708,-19715.44442817,0.000479,120]
[408490837,1773747851736,-19715.44442817,0.000479,120]
[408490838,1773747851765,-219.45,0.00047924,120]
[408490839,1773747851797,-1000.0,0.00047945,120]
[408490840,1773747851826,-200.0,0.0004799,30]
[408490841,1773747851855,-200.0,0.00048,120]
[408490842,1773747851883,-170.75708582,0.00048,120]
[408490843,1773747851913,-957.91060461,0.00048,120]
[408490844,1773747851944,-5000.0,0.00048,90]
[408490845,1773747851973,-5000.0,0.00048,90]
[408490846,1773747852002,-5000.0,0.00048,90]
[408490847,1773747852029,-5000.0,0.00048,90]
[408490848,1773747852054,-5000.0,0.00048,90]
[408490849,1773747852191,-5000.0,0.00048,90]
[408490850,1773747852223,-5000.0,0.00048,90]
[408490851,1773747852254,-5000.0,0.00048,90]
[408490852,1773747852288,-5000.0,0.00048,90]
[408490853,1773747852317,-5000.0,0.00048,90]
[408490854,1773747852346,-5000.0,0.00048,90]
[408490855,1773747852374,-5000.0,0.00048,90]
[408490856,1773747852403,-5000.0,0.00048,90]
[408490857,1773747852428,-5852.0,0.00048,90]
[408490858,1773747852454,-151.23763969,0.00048,120]
[408490859,1773747852481,-500.0,0.00048,120]
[408490860,1773747852509,-5000.0,0.00048,90]
[408490861,1773747852537,-5000.0,0.00048,90]
[408490862,1773747852565,-5000.0,0.00048,90]
[408490863,1773747852592,-5000.0,0.00048,90]
[408490864,1773747852620,-5000.0,0.00048,90]
[408490865,1773747852650,-5000.0,0.00048,90]
[408490866,1773747852679,-5000.0,0.00048,90]
[408490867,1773747852709,-5000.0,0.00048,90]
[408490868,1773747852736,-5000.0,0.00048,90]
[408490869,1773747852764,-5000.0,0.00048,90]
[408490870,1773747852791,-5000.0,0.00048,90]
[408490871,1773747852818,-5747.0,0.00048,90]
[408490872,1773747852849,-5000.0,0.00048,90]
[408490873,1773747852880,-5000.0,0.00048,90]
[408490874,1773747852908,-10000.0,0.00048,120]
[408490875,1773747852935,-150.22603076,0.00048,120]
[408490876,1773747852963,-175.66784433,0.00048,60]
[408490877,1773747852989,-554.0379,0.00048,120]
[408490878,1773747853015,-5722.41242756,0.00048,60]
[408490879,1773747853042,-179.6196763,0.00048,120]
[408490880,1773747853068,-205.67261714,0.00048,60]
[408490881,1773747853094,-696.839131,0.00048,120]
[408490882,1773747853120,-3153.45552297,0.00048,120]
[408490883,1773747853147,-904.61301516,0.00048,120]
[408490884,1773747853172,-328.04775141,0.00048,120]
[408490885,1773747853198,-500000.0,0.00048,30]
[408490886,1773747853224,-434.71703871,0.00048069,120]
[408490887,1773747853250,-600.0,0.00048087,120]
[408490888,1773747853277,-256.91596008,0.00048093,120]
[408490889,1773747853307,-754.25520337,0.00048178,120]
[408490890,1773747853334,-1999.0,0.00048219,120]
[408490891,1773747853363,-219.45,0.00048233,120]
[408490892,1773747853390,-434.71703871,0.00048246,120]
[408490893,1773747853417,-434.71703871,0.00048284,120]
[408490894,1773747853445,-325.73332143,0.00048341,120]
[408490895,1773747853473,-999.52,0.00048348,120]
[408490896,1773747853502,-1300.0,0.00048361,120]
[408490897,1773747853531,-1200.0,0.00048361,120]
[408490898,1773747853558,-369.68255334,0.00048394,120]
[408490899,1773747853585,-940.0548416,0.000484,120]
[408490900,1773747853612,-500.0,0.00048493,120]
[408490901,1773747853640,-1000.0,0.00048493,120]
[408490902,1773747853669,-16763.60378374,0.000485,30]
[408490903,1773747853799,-151.0,0.000485,120]
[408490904,1773747853829,-219.45,0.00048542,120]
[408490905,1773747853860,-322.28971306,0.0004855,120]
[408490906,1773747853892,-600.0,0.00048635,120]
[408490907,1773747853920,-2549.95,0.0004869,120]
[408490908,1773747853951,-20000.0,0.0004873,120]
[408490909,1773747853979,-12000.0,0.00048749,120]
[408490910,1773747854008,-1341.914333,0.0004876,120]
[408490911,1773747854037,-1000.0,0.00048767,120]
[408490912,1773747854067,-293.0,0.00048774,120]
[408490913,1773747854096,-12093.4,0.00048775,117]
[408490914,1773747854125,-151.0,0.00048797,120]
[408490915,1773747854155,-50000.0,0.000488,30]
[408490916,1773747854185,-50000.0,0.000488,60]
[408490917,1773747854215,-50000.0,0.000488,90]
[408490918,1773747854245,-60765.24544258,0.000488,120]
[408490919,1773747854276,-219.45,0.00048852,120]
[408490920,1773747854304,-79380.41945853,0.00048875,120]
[408490921,1773747854332,-678.8259029,0.00048886,120]
[408490922,1773747854360,-3351.47115227,0.00048888,120]
[408490923,1773747854390,-4593.22654458,0.00048889,120]
[408490924,1773747854420,-268.47349047,0.00048899,120]
[408490925,1773747854451,-6000.0,0.000489,30]
[408490926,1773747854484,-2000.0,0.000489,120]
[408490927,1773747854512,-642.36366238,0.000489,120]
[408490928,1773747854540,-457.02518618,0.000489,120]
[408490929,1773747854567,-457.0251861,0.000489,120]
[408490930,1773747854599,-457.0251861,0.000489,120]
[408490931,1773747854625,-457.0251861,0.000489,120]
[408490932,1773747854652,-457.0251861,0.000489,120]
[408490933,1773747854678,-457.0251861,0.000489,120]
[408490934,1773747854704,-457.0251861,0.000489,120]
[408490935,1773747854730,-457.0251861,0.000489,120]
[408490936,1773747854756,-457.0251861,0.000489,120]
[408490937,1773747854782,-457.0251861,0.000489,120]
[408490938,1773747854807,-457.0251861,0.000489,120]
[408490939,1773747854833,-457.0251861,0.000489,120]
[408490940,1773747854860,-457.0251861,0.000489,120]
[408490941,1773747854887,-457.0251861,0.000489,120]
[408490942,1773747854914,-457.0251861,0.000489,120]
[408490943,1773747854942,-457.0251861,0.000489,120]
[408490944,1773747854970,-457.0251861,0.000489,120]
[408490945,1773747854996,-457.0251861,0.000489,120]
[408490946,1773747855024,-457.0251861,0.000489,120]
[408490947,1773747855049,-457.0251861,0.000489,120]
[408490948,1773747855076,-2549.95,0.00048903,120]
[408490949,1773747855102,-1300.0,0.00048909,120]
[408490950,1773747855128,-1200.0,0.00048909,120]
[408490951,1773747855154,-2000.0,0.0004895,120]
[408490952,1773747855181,-1094.52154061,0.0004898,120]
[408490953,1773747855207,-215.0,0.0004899,30]
[408490954,1773747855232,-10000.0,0.00049,120]
[408490955,1773747855356,-10800.0,0.00049,30]
[408490956,1773747855391,-6305.24294744,0.00049,30]
[408490957,1773747855421,-2319.10644739,0.00049,120]